[Event "Titled Tuesday Blitz June 21 Late 2022"]
[White "Suleymanli, Aydin"]
[Black "Hansen, Eric"]
[WhiteFideId "13413937"]
[BlackFideId "2606771"]
[WhiteElo "2481"]
[BlackElo "2568"]
[Result "1-0"]
[Round "05"]
[TimeControl "180+1"]
[Date "2022.06.21"]
[WhiteClock "0:00:08"]
[BlackClock "0:00:03"]

1. d4 {[%clk 0:03:00]}  Nf6 {[%clk 0:02:54]} 2. c4 {[%clk 0:02:59]}  e6 {[%clk 0:02:53]} 3. Nf3 {[%clk 0:02:59]}  d5 {[%clk 0:02:48]} 4. Nc3 {[%clk 0:02:58]}  a6 {[%clk 0:02:44]} 5. cxd5 {[%clk 0:02:54]}  exd5 {[%clk 0:02:45]} 6. Bg5 {[%clk 0:02:54]}  Be6 {[%clk 0:02:46]} 7. Qb3 {[%clk 0:02:52]}  Ra7 {[%clk 0:02:38]} 8. e4 {[%clk 0:02:38]}  dxe4 {[%clk 0:02:29]} 9. d5 {[%clk 0:02:37]}  Bf5 {[%clk 0:02:23]} 10. Nh4 {[%clk 0:02:03]}  Bg6 {[%clk 0:02:14]} 11. Nxg6 {[%clk 0:01:56]}  hxg6 {[%clk 0:02:13]} 12. Nxe4 {[%clk 0:01:39]}  Be7 {[%clk 0:02:14]} 13. Nxf6+ {[%clk 0:01:29]}  Bxf6 {[%clk 0:02:12]} 14. Be3 {[%clk 0:01:28]}  b6 {[%clk 0:02:08]} 15. O-O-O {[%clk 0:01:27]}  Nd7 {[%clk 0:02:06]} 16. Kb1 {[%clk 0:01:23]}  O-O {[%clk 0:02:02]} 17. h4 {[%clk 0:01:24]}  Ne5 {[%clk 0:01:55]} 18. h5 {[%clk 0:01:22]}  g5 {[%clk 0:01:56]} 19. Qc2 {[%clk 0:01:03]}  Ng4 {[%clk 0:01:53]} 20. Qe4 {[%clk 0:00:45]}  Nxe3 {[%clk 0:01:47]} 21. Bd3 {[%clk 0:00:44]}  Re8 {[%clk 0:01:37]} 22. Qh7+ {[%clk 0:00:43]}  Kf8 {[%clk 0:01:38]} 23. Rhe1 {[%clk 0:00:35]}  Re5 {[%clk 0:01:31]} 24. fxe3 {[%clk 0:00:17]}  Ra8 {[%clk 0:01:22]} 25. Bc4 {[%clk 0:00:10]}  Ke7 {[%clk 0:01:12]} 26. Rf1 {[%clk 0:00:09]}  Qh8 {[%clk 0:01:04]} 27. d6+ {[%clk 0:00:06]}  cxd6 {[%clk 0:01:02]} 28. Qd3 {[%clk 0:00:04]}  Rd8 {[%clk 0:01:02]} 29. Bd5 {[%clk 0:00:04]}  b5 {[%clk 0:00:58]} 30. Qd4 {[%clk 0:00:04]}  Qxh5 {[%clk 0:00:56]} 31. e4 {[%clk 0:00:04]}  Qg4 {[%clk 0:00:52]} 32. Qa7+ {[%clk 0:00:04]}  Rd7 {[%clk 0:00:51]} 33. Qxa6 {[%clk 0:00:05]}  Rxd5 {[%clk 0:00:17]} 34. exd5 {[%clk 0:00:06]}  Qe4+ {[%clk 0:00:18]} 35. Ka1 {[%clk 0:00:05]}  Qb4 {[%clk 0:00:17]} 36. Rfe1+ {[%clk 0:00:04]}  Be5 {[%clk 0:00:17]} 37. Re2 {[%clk 0:00:05]}  Qc5 {[%clk 0:00:11]} 38. Qc6 {[%clk 0:00:04]}  Qxc6 {[%clk 0:00:04]} 39. dxc6 {[%clk 0:00:05]}  Rc7 {[%clk 0:00:05]} 40. Rc2 {[%clk 0:00:05]}  Ke6 {[%clk 0:00:04]} 41. Kb1 {[%clk 0:00:06]}  f5 {[%clk 0:00:05]} 42. b4 {[%clk 0:00:06]}  g4 {[%clk 0:00:03]} 43. a4 {[%clk 0:00:07]}  bxa4 {[%clk 0:00:03]} 44. b5 {[%clk 0:00:08]}  a3 {[%clk 0:00:02]} 45. b6 {[%clk 0:00:08]}  Ra7 {[%clk 0:00:03]} 46. bxa7 {[%clk 0:00:08]} 1-0


[Site "https://www.chess.com"]

[Event "Titled Tuesday Blitz June 21 Late 2022"]
[White "Tari, Aryan"]
[Black "Barp, Alberto"]
[WhiteFideId "1510045"]
[BlackFideId "872555"]
[WhiteElo "2567"]
[BlackElo "2229"]
[Result "1-0"]
[Round "05"]
[TimeControl "180+1"]
[Date "2022.06.21"]
[WhiteClock "0:00:06"]
[BlackClock "0:00:01"]

1. d4 {[%clk 0:03:00]}  Nf6 {[%clk 0:02:57]} 2. Nf3 {[%clk 0:03:01]}  d5 {[%clk 0:02:55]} 3. Bf4 {[%clk 0:02:58]}  c5 {[%clk 0:02:52]} 4. e3 {[%clk 0:02:59]}  Nbd7 {[%clk 0:02:49]} 5. Be2 {[%clk 0:02:24]}  g6 {[%clk 0:02:47]} 6. h3 {[%clk 0:02:23]}  Bg7 {[%clk 0:02:47]} 7. O-O {[%clk 0:02:23]}  O-O {[%clk 0:02:46]} 8. Bh2 {[%clk 0:02:21]}  b6 {[%clk 0:02:44]} 9. a4 {[%clk 0:02:20]}  a6 {[%clk 0:02:42]} 10. c3 {[%clk 0:02:20]}  Bb7 {[%clk 0:02:42]} 11. Nbd2 {[%clk 0:02:20]}  e6 {[%clk 0:02:33]} 12. a5 {[%clk 0:02:15]}  cxd4 {[%clk 0:02:05]} 13. cxd4 {[%clk 0:02:10]}  b5 {[%clk 0:02:03]} 14. b4 {[%clk 0:02:05]}  Qe7 {[%clk 0:02:00]} 15. Rb1 {[%clk 0:01:39]}  Rfc8 {[%clk 0:01:38]} 16. Ne1 {[%clk 0:01:39]}  e5 {[%clk 0:01:27]} 17. Nd3 {[%clk 0:01:37]}  exd4 {[%clk 0:01:14]} 18. exd4 {[%clk 0:01:38]}  Ne4 {[%clk 0:01:13]} 19. Nxe4 {[%clk 0:01:38]}  dxe4 {[%clk 0:01:14]} 20. Nc5 {[%clk 0:01:38]}  Nxc5 {[%clk 0:01:14]} 21. dxc5 {[%clk 0:01:29]}  Be5 {[%clk 0:01:14]} 22. Bxe5 {[%clk 0:01:27]}  Qxe5 {[%clk 0:01:15]} 23. Qc1 {[%clk 0:01:17]}  Rd8 {[%clk 0:01:10]} 24. Rd1 {[%clk 0:01:00]}  Bc6 {[%clk 0:00:56]} 25. Qe3 {[%clk 0:00:59]}  h5 {[%clk 0:00:52]} 26. f4 {[%clk 0:00:58]}  Qf6 {[%clk 0:00:50]} 27. g4 {[%clk 0:00:49]}  hxg4 {[%clk 0:00:49]} 28. hxg4 {[%clk 0:00:50]}  Qh4 {[%clk 0:00:33]} 29. Kg2 {[%clk 0:00:48]}  Rd3 {[%clk 0:00:32]} 30. Rxd3 {[%clk 0:00:28]}  exd3+ {[%clk 0:00:33]} 31. Bf3 {[%clk 0:00:29]}  Qxg4+ {[%clk 0:00:29]} 32. Kf2 {[%clk 0:00:29]}  Qh4+ {[%clk 0:00:25]} 33. Kg2 {[%clk 0:00:30]}  Re8 {[%clk 0:00:23]} 34. Qxd3 {[%clk 0:00:29]}  Qg4+ {[%clk 0:00:19]} 35. Kf2 {[%clk 0:00:30]}  Qxf4 {[%clk 0:00:19]} 36. Rb3 {[%clk 0:00:22]}  Qh2+ {[%clk 0:00:18]} 37. Kf1 {[%clk 0:00:21]}  Qh3+ {[%clk 0:00:13]} 38. Kf2 {[%clk 0:00:20]}  Qh4+ {[%clk 0:00:13]} 39. Kg2 {[%clk 0:00:21]}  Rd8 {[%clk 0:00:12]} 40. Qe2 {[%clk 0:00:16]}  Qg5+ {[%clk 0:00:11]} 41. Kf1 {[%clk 0:00:10]}  Rd2 {[%clk 0:00:09]} 42. Qe3 {[%clk 0:00:07]}  Qd8 {[%clk 0:00:03]} 43. Bxc6 {[%clk 0:00:06]}  Rd1+ {[%clk 0:00:03]} 44. Kg2 {[%clk 0:00:05]}  Rd2+ {[%clk 0:00:02]} 45. Kg3 {[%clk 0:00:05]}  Qc7+ {[%clk 0:00:01]} 46. Qf4 {[%clk 0:00:06]} 1-0


[Site "https://www.chess.com"]

[Event "Titled Tuesday Blitz June 21 Late 2022"]
[White "Urbina Perez, Juan Antonio"]
[Black "Pappelis, Dimitrios"]
[WhiteFideId "2217368"]
[BlackFideId "4215281"]
[WhiteElo "2192"]
[BlackElo "1998"]
[Result "0-1"]
[Round "05"]
[TimeControl "180+1"]
[Date "2022.06.22"]
[WhiteClock "0:00:48"]
[BlackClock "0:01:28"]

1. d4 {[%clk 0:02:55]}  d5 {[%clk 0:02:59]} 2. Nf3 {[%clk 0:02:53]}  Nf6 {[%clk 0:02:59]} 3. Bf4 {[%clk 0:02:52]}  c5 {[%clk 0:02:58]} 4. c3 {[%clk 0:02:52]}  Nc6 {[%clk 0:02:58]} 5. e3 {[%clk 0:02:51]}  Bg4 {[%clk 0:02:58]} 6. Nbd2 {[%clk 0:02:49]}  e6 {[%clk 0:02:58]} 7. Bd3 {[%clk 0:02:47]}  Bd6 {[%clk 0:02:57]} 8. Bxd6 {[%clk 0:02:46]}  Qxd6 {[%clk 0:02:57]} 9. O-O {[%clk 0:02:45]}  O-O {[%clk 0:02:56]} 10. h3 {[%clk 0:02:42]}  Bh5 {[%clk 0:02:56]} 11. dxc5 {[%clk 0:02:21]}  Qxc5 {[%clk 0:02:56]} 12. e4 {[%clk 0:02:19]}  dxe4 {[%clk 0:02:53]} 13. Nxe4 {[%clk 0:02:20]}  Nxe4 {[%clk 0:02:54]} 14. Bxe4 {[%clk 0:02:20]}  Rad8 {[%clk 0:02:54]} 15. Qe2 {[%clk 0:02:18]}  Bg6 {[%clk 0:02:47]} 16. Bxg6 {[%clk 0:02:18]}  hxg6 {[%clk 0:02:48]} 17. Rfd1 {[%clk 0:02:17]}  Qb6 {[%clk 0:02:43]} 18. b3 {[%clk 0:02:11]}  Qa5 {[%clk 0:02:39]} 19. c4 {[%clk 0:02:07]}  Qc3 {[%clk 0:02:36]} 20. Rac1 {[%clk 0:02:04]}  Qa5 {[%clk 0:02:33]} 21. h4 {[%clk 0:01:51]}  Rxd1+ {[%clk 0:02:31]} 22. Rxd1 {[%clk 0:01:52]}  Rd8 {[%clk 0:02:31]} 23. Rxd8+ {[%clk 0:01:50]}  Qxd8 {[%clk 0:02:32]} 24. Ng5 {[%clk 0:01:45]}  Qd4 {[%clk 0:02:27]} 25. Qf3 {[%clk 0:01:35]}  Ne5 {[%clk 0:02:19]} 26. Qxb7 {[%clk 0:01:30]}  Qa1+ {[%clk 0:01:43]} 27. Kh2 {[%clk 0:01:29]}  Ng4+ {[%clk 0:01:32]} 28. Kg3 {[%clk 0:01:02]}  Qc3+ {[%clk 0:01:30]} 29. Kxg4 {[%clk 0:00:56]}  f5+ {[%clk 0:01:28]} 30. Kf4 {[%clk 0:00:48]}  e5# {[%clk 0:01:28]} 0-1


[Site "https://www.chess.com"]

[Event "Titled Tuesday Blitz June 21 Late 2022"]
[White "Vasquez Schroeder, Rodrigo"]
[Black "Terry, Renato"]
[WhiteFideId "3400042"]
[BlackFideId "3803457"]
[WhiteElo "2567"]
[BlackElo "2577"]
[Result "1/2-1/2"]
[Round "05"]
[TimeControl "180+1"]
[Date "2022.06.21"]
[WhiteClock "0:00:59"]
[BlackClock "0:00:40"]

1. d4 {[%clk 0:03:00]}  d5 {[%clk 0:02:57]} 2. c4 {[%clk 0:02:59]}  dxc4 {[%clk 0:02:57]} 3. e3 {[%clk 0:03:00]}  Nf6 {[%clk 0:02:56]} 4. Nf3 {[%clk 0:02:58]}  e6 {[%clk 0:02:56]} 5. Bxc4 {[%clk 0:02:58]}  a6 {[%clk 0:02:57]} 6. O-O {[%clk 0:02:57]}  c5 {[%clk 0:02:57]} 7. dxc5 {[%clk 0:02:48]}  Bxc5 {[%clk 0:02:56]} 8. Qe2 {[%clk 0:02:44]}  b5 {[%clk 0:02:54]} 9. Bd3 {[%clk 0:02:44]}  Bb7 {[%clk 0:02:54]} 10. a3 {[%clk 0:02:44]}  Nbd7 {[%clk 0:02:54]} 11. Nbd2 {[%clk 0:02:43]}  O-O {[%clk 0:02:54]} 12. b4 {[%clk 0:02:43]}  Bb6 {[%clk 0:02:42]} 13. Bb2 {[%clk 0:02:43]}  Qe7 {[%clk 0:02:42]} 14. Rac1 {[%clk 0:02:38]}  Rfc8 {[%clk 0:02:35]} 15. e4 {[%clk 0:02:34]}  e5 {[%clk 0:02:22]} 16. Nh4 {[%clk 0:02:29]}  g6 {[%clk 0:02:21]} 17. Nhf3 {[%clk 0:02:28]}  Nh5 {[%clk 0:02:04]} 18. g3 {[%clk 0:02:26]}  f6 {[%clk 0:02:05]} 19. Nb3 {[%clk 0:02:23]}  Ng7 {[%clk 0:02:02]} 20. Rxc8+ {[%clk 0:02:07]}  Rxc8 {[%clk 0:02:02]} 21. Rc1 {[%clk 0:02:08]}  Ne6 {[%clk 0:01:56]} 22. Rxc8+ {[%clk 0:02:01]}  Bxc8 {[%clk 0:01:57]} 23. Qc2 {[%clk 0:02:01]}  Bb7 {[%clk 0:01:56]} 24. Bc1 {[%clk 0:01:57]}  Qd6 {[%clk 0:01:56]} 25. Qe2 {[%clk 0:01:41]}  Qc7 {[%clk 0:01:22]} 26. Bd2 {[%clk 0:01:40]}  Kf7 {[%clk 0:01:20]} 27. h4 {[%clk 0:01:30]}  h5 {[%clk 0:01:18]} 28. Kg2 {[%clk 0:01:30]}  Qc6 {[%clk 0:01:13]} 29. Be1 {[%clk 0:01:13]}  Qd6 {[%clk 0:01:04]} 30. Bd2 {[%clk 0:01:07]}  Kg7 {[%clk 0:00:50]} 31. Be3 {[%clk 0:01:06]}  Bd8 {[%clk 0:00:44]} 32. Bd2 {[%clk 0:00:59]}  Bb6 {[%clk 0:00:39]} 33. Be3 {[%clk 0:00:59]}  Bd8 {[%clk 0:00:39]} 34. Bd2 {[%clk 0:00:59]}  Bb6 {[%clk 0:00:40]} 1/2-1/2


[Site "https://www.chess.com"]

[Event "Titled Tuesday Blitz June 21 Late 2022"]
[White "Veiga, Jose Francisco R P Neves"]
[Black "Tanenbaum, Zachary"]
[WhiteFideId "1930087"]
[BlackFideId "2060850"]
[WhiteElo "2326"]
[BlackElo "2175"]
[Result "1/2-1/2"]
[Round "05"]
[TimeControl "180+1"]
[Date "2022.06.21"]
[WhiteClock "0:00:19"]
[BlackClock "0:00:05"]

1. e4 {[%clk 0:03:00]}  e5 {[%clk 0:02:57]} 2. Nf3 {[%clk 0:02:59]}  Nc6 {[%clk 0:02:56]} 3. Bb5 {[%clk 0:03:00]}  a6 {[%clk 0:02:56]} 4. Ba4 {[%clk 0:03:00]}  d6 {[%clk 0:02:54]} 5. O-O {[%clk 0:02:55]}  Nf6 {[%clk 0:02:53]} 6. d3 {[%clk 0:02:55]}  b5 {[%clk 0:02:51]} 7. Bb3 {[%clk 0:02:55]}  Na5 {[%clk 0:02:51]} 8. Nc3 {[%clk 0:02:50]}  Be7 {[%clk 0:02:48]} 9. Bg5 {[%clk 0:02:44]}  h6 {[%clk 0:02:45]} 10. Bh4 {[%clk 0:02:43]}  O-O {[%clk 0:02:36]} 11. Re1 {[%clk 0:02:34]}  Bb7 {[%clk 0:02:35]} 12. Bxf6 {[%clk 0:01:41]}  Bxf6 {[%clk 0:02:35]} 13. Bd5 {[%clk 0:01:40]}  c6 {[%clk 0:02:34]} 14. Bb3 {[%clk 0:01:26]}  Re8 {[%clk 0:02:09]} 15. Ne2 {[%clk 0:01:04]}  d5 {[%clk 0:02:04]} 16. Ng3 {[%clk 0:01:03]}  g6 {[%clk 0:01:54]} 17. c3 {[%clk 0:00:51]}  Nxb3 {[%clk 0:01:54]} 18. axb3 {[%clk 0:00:45]}  c5 {[%clk 0:01:53]} 19. c4 {[%clk 0:00:42]}  d4 {[%clk 0:01:49]} 20. Qc2 {[%clk 0:00:38]}  Qd6 {[%clk 0:01:43]} 21. Ra5 {[%clk 0:00:36]}  Bd8 {[%clk 0:01:43]} 22. Ra2 {[%clk 0:00:34]}  h5 {[%clk 0:01:38]} 23. h3 {[%clk 0:00:31]}  h4 {[%clk 0:01:36]} 24. Nf1 {[%clk 0:00:27]}  f5 {[%clk 0:01:34]} 25. N1d2 {[%clk 0:00:24]}  Rc8 {[%clk 0:01:23]} 26. Qd1 {[%clk 0:00:18]}  Qf6 {[%clk 0:01:20]} 27. Qe2 {[%clk 0:00:17]}  Bc7 {[%clk 0:01:18]} 28. Nh2 {[%clk 0:00:14]}  Re7 {[%clk 0:01:15]} 29. Raa1 {[%clk 0:00:14]}  Rf8 {[%clk 0:01:13]} 30. Rac1 {[%clk 0:00:14]}  Bd6 {[%clk 0:01:09]} 31. Rc2 {[%clk 0:00:12]}  Ref7 {[%clk 0:01:06]} 32. Nhf3 {[%clk 0:00:11]}  Re7 {[%clk 0:00:59]} 33. Nh2 {[%clk 0:00:11]}  Kg7 {[%clk 0:00:51]} 34. Nhf3 {[%clk 0:00:11]}  Bc8 {[%clk 0:00:46]} 35. Nh2 {[%clk 0:00:11]}  Qg5 {[%clk 0:00:44]} 36. Ndf3 {[%clk 0:00:11]}  Qf4 {[%clk 0:00:41]} 37. Qd2 {[%clk 0:00:10]}  fxe4 {[%clk 0:00:40]} 38. Rxe4 {[%clk 0:00:10]}  Qf6 {[%clk 0:00:33]} 39. Qe1 {[%clk 0:00:08]}  Bf5 {[%clk 0:00:31]} 40. Ng4 {[%clk 0:00:09]}  Qe6 {[%clk 0:00:26]} 41. Ng5 {[%clk 0:00:03]}  Qd7 {[%clk 0:00:25]} 42. Rce2 {[%clk 0:00:03]}  Bxe4 {[%clk 0:00:24]} 43. Nxe4 {[%clk 0:00:04]}  Rf5 {[%clk 0:00:20]} 44. f3 {[%clk 0:00:04]}  Re6 {[%clk 0:00:18]} 45. Qxh4 {[%clk 0:00:04]}  Rh5 {[%clk 0:00:14]} 46. Qg3 {[%clk 0:00:04]}  Be7 {[%clk 0:00:10]} 47. Qh2 {[%clk 0:00:03]}  bxc4 {[%clk 0:00:09]} 48. bxc4 {[%clk 0:00:03]}  Qa4 {[%clk 0:00:09]} 49. Kf2 {[%clk 0:00:02]}  Qd1 {[%clk 0:00:06]} 50. Qg1 {[%clk 0:00:02]}  Bh4+ {[%clk 0:00:06]} 51. g3 {[%clk 0:00:02]}  Qxg1+ {[%clk 0:00:04]} 52. Kxg1 {[%clk 0:00:02]}  Be7 {[%clk 0:00:05]} 53. Kg2 {[%clk 0:00:03]}  Rc6 {[%clk 0:00:04]} 54. b3 {[%clk 0:00:03]}  Rc8 {[%clk 0:00:05]} 55. Rb2 {[%clk 0:00:03]}  Rb8 {[%clk 0:00:05]} 56. Nd2 {[%clk 0:00:03]}  Rhh8 {[%clk 0:00:05]} 57. Nf2 {[%clk 0:00:04]}  Bf6 {[%clk 0:00:05]} 58. Ra2 {[%clk 0:00:04]}  Rb6 {[%clk 0:00:04]} 59. Nfe4 {[%clk 0:00:05]}  Be7 {[%clk 0:00:04]} 60. Nf2 {[%clk 0:00:05]}  Rhb8 {[%clk 0:00:04]} 61. Ra3 {[%clk 0:00:06]}  Kf6 {[%clk 0:00:03]} 62. Nfe4+ {[%clk 0:00:06]}  Ke6 {[%clk 0:00:03]} 63. Nf2 {[%clk 0:00:07]}  Kd7 {[%clk 0:00:04]} 64. Nfe4 {[%clk 0:00:08]}  Kc6 {[%clk 0:00:04]} 65. Nf2 {[%clk 0:00:08]}  Kb7 {[%clk 0:00:05]} 66. Nfe4 {[%clk 0:00:09]}  Rc6 {[%clk 0:00:05]} 67. Nf2 {[%clk 0:00:09]}  Ra8 {[%clk 0:00:04]} 68. Nfe4 {[%clk 0:00:10]}  a5 {[%clk 0:00:05]} 69. h4 {[%clk 0:00:07]}  a4 {[%clk 0:00:05]} 70. bxa4 {[%clk 0:00:07]}  Rca6 {[%clk 0:00:05]} 71. Rb3+ {[%clk 0:00:07]}  Kc7 {[%clk 0:00:05]} 72. Rb5 {[%clk 0:00:08]}  Ra5 {[%clk 0:00:04]} 73. Rxa5 {[%clk 0:00:07]}  Rxa5 {[%clk 0:00:04]} 74. Nb3 {[%clk 0:00:08]}  Rxa4 {[%clk 0:00:04]} 75. Nbxc5 {[%clk 0:00:08]}  Ra2+ {[%clk 0:00:04]} 76. Kh3 {[%clk 0:00:08]}  Bxc5 {[%clk 0:00:04]} 77. Nxc5 {[%clk 0:00:09]}  Kc6 {[%clk 0:00:04]} 78. Ne4 {[%clk 0:00:08]}  Ra3 {[%clk 0:00:04]} 79. Nf2 {[%clk 0:00:08]}  Ra2 {[%clk 0:00:04]} 80. Kg2 {[%clk 0:00:08]}  Re2 {[%clk 0:00:05]} 81. Kf1 {[%clk 0:00:08]}  Re3 {[%clk 0:00:05]} 82. Kg2 {[%clk 0:00:09]}  Kc5 {[%clk 0:00:05]} 83. g4 {[%clk 0:00:09]}  Kd6 {[%clk 0:00:04]} 84. Kg3 {[%clk 0:00:09]}  Ke6 {[%clk 0:00:05]} 85. Kg2 {[%clk 0:00:09]}  Kf7 {[%clk 0:00:04]} 86. Kg3 {[%clk 0:00:10]}  Re2 {[%clk 0:00:05]} 87. Kg2 {[%clk 0:00:10]}  Rd2 {[%clk 0:00:05]} 88. Kg3 {[%clk 0:00:10]}  g5 {[%clk 0:00:05]} 89. h5 {[%clk 0:00:09]}  Kg7 {[%clk 0:00:05]} 90. Kg2 {[%clk 0:00:10]}  Kh6 {[%clk 0:00:05]} 91. Kf1 {[%clk 0:00:10]}  Rc2 {[%clk 0:00:05]} 92. Kg2 {[%clk 0:00:11]}  Re2 {[%clk 0:00:05]} 93. Kf1 {[%clk 0:00:11]}  Re3 {[%clk 0:00:05]} 94. Kg2 {[%clk 0:00:12]}  Re1 {[%clk 0:00:05]} 95. Kg3 {[%clk 0:00:11]}  Rf1 {[%clk 0:00:05]} 96. Kg2 {[%clk 0:00:11]}  Rc1 {[%clk 0:00:05]} 97. Ne4 {[%clk 0:00:10]}  Rd1 {[%clk 0:00:04]} 98. Nf2 {[%clk 0:00:10]}  Rd2 {[%clk 0:00:04]} 99. Kf1 {[%clk 0:00:10]}  Rc2 {[%clk 0:00:04]} 100. Ke1 {[%clk 0:00:10]}  Rc1+ {[%clk 0:00:04]} 101. Ke2 {[%clk 0:00:10]}  Rc2+ {[%clk 0:00:05]} 102. Ke1 {[%clk 0:00:11]}  Rc1+ {[%clk 0:00:04]} 103. Kd2 {[%clk 0:00:12]}  Ra1 {[%clk 0:00:04]} 104. Ke2 {[%clk 0:00:11]}  Ra2+ {[%clk 0:00:04]} 105. Ke1 {[%clk 0:00:12]}  Rc2 {[%clk 0:00:04]} 106. Ne4 {[%clk 0:00:12]}  Rb2 {[%clk 0:00:03]} 107. Ng3 {[%clk 0:00:12]}  Rb3 {[%clk 0:00:03]} 108. Nf5+ {[%clk 0:00:12]}  Kh7 {[%clk 0:00:03]} 109. Kd2 {[%clk 0:00:13]}  Rb2+ {[%clk 0:00:03]} 110. Kc1 {[%clk 0:00:14]}  Rb3 {[%clk 0:00:02]} 111. Kc2 {[%clk 0:00:13]}  Rc3+ {[%clk 0:00:02]} 112. Kd2 {[%clk 0:00:14]}  Ra3 {[%clk 0:00:02]} 113. Ne7 {[%clk 0:00:12]}  Ra2+ {[%clk 0:00:02]} 114. Kd1 {[%clk 0:00:12]}  Ra3 {[%clk 0:00:03]} 115. Kd2 {[%clk 0:00:13]}  Ra2+ {[%clk 0:00:04]} 116. Kd1 {[%clk 0:00:13]}  Ra1+ {[%clk 0:00:04]} 117. Ke2 {[%clk 0:00:13]}  Ra3 {[%clk 0:00:05]} 118. Nc6 {[%clk 0:00:12]}  Ra2+ {[%clk 0:00:05]} 119. Ke1 {[%clk 0:00:12]}  Ra1+ {[%clk 0:00:05]} 120. Kf2 {[%clk 0:00:12]}  Ra2+ {[%clk 0:00:06]} 121. Kg3 {[%clk 0:00:13]}  Re2 {[%clk 0:00:06]} 122. c5 {[%clk 0:00:10]}  Rc2 {[%clk 0:00:05]} 123. Nxe5 {[%clk 0:00:11]}  Rxc5 {[%clk 0:00:06]} 124. f4 {[%clk 0:00:11]}  gxf4+ {[%clk 0:00:04]} 125. Kxf4 {[%clk 0:00:12]}  Rc1 {[%clk 0:00:04]} 126. Ke4 {[%clk 0:00:12]}  Kg7 {[%clk 0:00:04]} 127. Kxd4 {[%clk 0:00:13]}  Kf6 {[%clk 0:00:04]} 128. Nf3 {[%clk 0:00:13]}  Rf1 {[%clk 0:00:04]} 129. Ke4 {[%clk 0:00:13]}  Rf2 {[%clk 0:00:03]} 130. Kf4 {[%clk 0:00:13]}  Re2 {[%clk 0:00:03]} 131. d4 {[%clk 0:00:13]}  Ke6 {[%clk 0:00:02]} 132. g5 {[%clk 0:00:12]}  Rg2 {[%clk 0:00:01]} 133. h6 {[%clk 0:00:12]}  Kf7 {[%clk 0:00:01]} 134. Kf5 {[%clk 0:00:12]}  Kg8 {[%clk 0:00:01]} 135. Ne5 {[%clk 0:00:11]}  Rf2+ {[%clk 0:00:01]} 136. Kg6 {[%clk 0:00:11]}  Rf1 {[%clk 0:00:02]} 137. h7+ {[%clk 0:00:11]}  Kh8 {[%clk 0:00:02]} 138. Nf7+ {[%clk 0:00:11]}  Rxf7 {[%clk 0:00:03]} 139. Kxf7 {[%clk 0:00:12]}  Kxh7 {[%clk 0:00:02]} 140. g6+ {[%clk 0:00:13]}  Kh6 {[%clk 0:00:03]} 141. g7 {[%clk 0:00:14]}  Kg5 {[%clk 0:00:04]} 142. g8=Q+ {[%clk 0:00:15]}  Kf5 {[%clk 0:00:05]} 143. Qg6+ {[%clk 0:00:15]}  Kf4 {[%clk 0:00:05]} 144. Qe6 {[%clk 0:00:16]}  Kg5 {[%clk 0:00:04]} 145. d5 {[%clk 0:00:16]}  Kh5 {[%clk 0:00:04]} 146. d6 {[%clk 0:00:17]}  Kg5 {[%clk 0:00:04]} 147. d7 {[%clk 0:00:18]}  Kh5 {[%clk 0:00:05]} 148. d8=Q {[%clk 0:00:19]} 1/2-1/2


[Site "https://www.chess.com"]

[Event "Titled Tuesday Blitz June 21 Late 2022"]
[White "Wang, Isaac"]
[Black "Pesotskiy, Mikhail"]
[WhiteFideId "30977185"]
[BlackFideId "34164453"]
[WhiteElo "2301"]
[BlackElo "2010"]
[Result "0-1"]
[Round "05"]
[TimeControl "180+1"]
[Date "2022.06.22"]
[WhiteClock "0:00:16"]
[BlackClock "0:01:13"]

1. d4 {[%clk 0:03:00]}  Nf6 {[%clk 0:02:56]} 2. c4 {[%clk 0:02:59]}  e6 {[%clk 0:02:56]} 3. Nc3 {[%clk 0:02:59]}  Bb4 {[%clk 0:02:57]} 4. f3 {[%clk 0:02:59]}  c5 {[%clk 0:02:55]} 5. d5 {[%clk 0:02:59]}  O-O {[%clk 0:02:55]} 6. e4 {[%clk 0:02:58]}  Re8 {[%clk 0:02:55]} 7. Ne2 {[%clk 0:02:54]}  b5 {[%clk 0:02:55]} 8. e5 {[%clk 0:02:33]}  exd5 {[%clk 0:02:51]} 9. exf6 {[%clk 0:02:30]}  d4 {[%clk 0:02:51]} 10. Bd2 {[%clk 0:02:20]}  dxc3 {[%clk 0:02:50]} 11. bxc3 {[%clk 0:02:16]}  Ba5 {[%clk 0:02:49]} 12. fxg7 {[%clk 0:02:15]}  bxc4 {[%clk 0:02:47]} 13. Kf2 {[%clk 0:02:05]}  d5 {[%clk 0:02:39]} 14. Be3 {[%clk 0:01:55]}  Qe7 {[%clk 0:02:36]} 15. Qd2 {[%clk 0:01:48]}  d4 {[%clk 0:02:30]} 16. Bg5 {[%clk 0:01:44]}  f6 {[%clk 0:02:31]} 17. Bf4 {[%clk 0:01:42]}  Nc6 {[%clk 0:02:20]} 18. g3 {[%clk 0:01:27]}  Bf5 {[%clk 0:02:00]} 19. Qc1 {[%clk 0:01:01]}  Bd3 {[%clk 0:01:56]} 20. Ng1 {[%clk 0:00:39]}  Bxc3 {[%clk 0:01:49]} 21. Bxd3 {[%clk 0:00:38]}  cxd3 {[%clk 0:01:50]} 22. Rb1 {[%clk 0:00:36]}  Nb4 {[%clk 0:01:24]} 23. Qd1 {[%clk 0:00:25]}  c4 {[%clk 0:01:18]} 24. a3 {[%clk 0:00:15]}  Nd5 {[%clk 0:01:17]} 25. Bd2 {[%clk 0:00:14]}  Bxd2 {[%clk 0:01:12]} 26. Qxd2 {[%clk 0:00:15]}  Qe3+ {[%clk 0:01:13]} 27. Qxe3 {[%clk 0:00:16]}  dxe3+ {[%clk 0:01:14]} 28. Kg2 {[%clk 0:00:16]}  c3 {[%clk 0:01:13]} 0-1


[Site "https://www.chess.com"]

[Event "Titled Tuesday Blitz June 21 Late 2022"]
[White "Weisz, Bryan"]
[Black "Mahdavi, Reza"]
[WhiteFideId "30934133"]
[BlackFideId "12595926"]
[WhiteElo "2266"]
[BlackElo "2712"]
[Result "0-1"]
[Round "05"]
[TimeControl "180+1"]
[Date "2022.06.22"]
[WhiteClock "0:02:03"]
[BlackClock "0:02:16"]

1. e4 {[%clk 0:03:00]}  c5 {[%clk 0:02:59]} 2. Nf3 {[%clk 0:03:00]}  e6 {[%clk 0:03:00]} 3. d4 {[%clk 0:03:01]}  cxd4 {[%clk 0:03:01]} 4. Nxd4 {[%clk 0:03:02]}  Nc6 {[%clk 0:03:01]} 5. Nb5 {[%clk 0:03:02]}  a6 {[%clk 0:02:50]} 6. Nd6+ {[%clk 0:03:01]}  Bxd6 {[%clk 0:02:51]} 7. Qxd6 {[%clk 0:03:02]}  Qe7 {[%clk 0:02:52]} 8. Qg3 {[%clk 0:03:01]}  Nf6 {[%clk 0:02:50]} 9. Qxg7 {[%clk 0:02:57]}  Rg8 {[%clk 0:02:50]} 10. Qh6 {[%clk 0:02:57]}  Nxe4 {[%clk 0:02:51]} 11. Qxh7 {[%clk 0:02:54]}  Nf6 {[%clk 0:02:51]} 12. Qh6 {[%clk 0:02:43]}  d5 {[%clk 0:02:40]} 13. Bg5 {[%clk 0:02:42]}  Rxg5 {[%clk 0:02:30]} 14. Qxg5 {[%clk 0:02:42]}  Qb4+ {[%clk 0:02:31]} 15. Qd2 {[%clk 0:02:35]}  Qxb2 {[%clk 0:02:32]} 16. Qc3 {[%clk 0:02:35]}  Qc1+ {[%clk 0:02:32]} 17. Ke2 {[%clk 0:02:36]}  Ne4 {[%clk 0:02:31]} 18. Qh8+ {[%clk 0:02:34]}  Ke7 {[%clk 0:02:31]} 19. Na3 {[%clk 0:02:04]}  Qd2+ {[%clk 0:02:25]} 20. Kf3 {[%clk 0:02:04]}  Qxf2+ {[%clk 0:02:26]} 21. Kg4 {[%clk 0:02:04]}  Qf5+ {[%clk 0:02:15]} 22. Kh4 {[%clk 0:02:04]}  Qg5+ {[%clk 0:02:15]} 23. Kh3 {[%clk 0:02:03]}  e5+ {[%clk 0:02:16]} 24. g4 {[%clk 0:02:03]}  Qxg4# {[%clk 0:02:16]} 0-1


[Site "https://www.chess.com"]